bitfinex/quotes_SOLUSD_20240623
["timestamp","ask_amount","ask_price","bid_price","bid_amount"]
[1719185355007,7.7427,129.16,129.12,116.2467]
[1719185355417,7.7427,129.16,129.12,123.9912]
[1719185355596,7.7418,129.17,129.12,223.9912]
[1719185355793,7.7418,129.17,129.12,216.2467]
[1719185356003,7.7418,129.17,129.13,7.744]
[1719185356209,7.7418,129.17,129.14,0.34]
[1719185356401,7.7413,129.18,129.14,0.34]
[1719185356602,7.7413,129.18,129.14,100.34]
[1719185357007,7.7413,129.18,129.14,108.0834]
[1719185357402,7.7413,129.18,129.14,100.34]
[1719185357609,7.7419,129.17,129.14,100.34]
[1719185358516,7.7412,129.18,129.14,208.0834]
[1719185358824,7.7412,129.18,129.16,100.0]
[1719185359138,7.7411,129.18,129.17,0.17]
[1719185359922,7.7407,129.19,129.17,0.17]
[1719185360230,7.7411,129.18,129.17,0.17]
[1719185360435,7.7408,129.19,129.17,0.17]
[1719185361726,7.74,129.2,129.17,0.17]
[1719185361979,22.2268,129.23,129.17,0.34]
[1719185362113,7.7411,129.18,129.17,0.34]
[1719185362295,7.7406,129.19,129.17,0.34]
[1719185362498,7.7411,129.18,129.17,0.34]
[1719185362726,7.7411,129.18,129.17,0.17]
[1719185365519,7.7408,129.19,129.17,0.17]
[1719185365918,23.29605246,129.23,129.14,200.0]
[1719185366118,23.29605246,129.23,129.15,0.34]
[1719185366946,7.742,129.17,129.15,0.34]
[1719185367107,7.7423,129.16,129.12,116.2467]
[1719185367305,7.7423,129.16,129.13,0.17]
[1719185368042,7.7418,129.17,129.13,0.17]
[1719185368407,7.7424,129.16,129.13,0.17]
[1719185368607,7.7424,129.16,129.13,0.34]
[1719185368814,23.29605246,129.23,129.13,0.34]
[1719185368815,7.7419,129.17,129.13,0.34]
[1719185369549,7.743,129.15,129.13,0.34]
[1719185369711,7.742,129.17,129.13,0.34]
[1719185370216,23.29605246,129.23,129.14,100.0]
[1719185370409,7.7413,129.18,129.14,100.0]
[1719185370615,7.7413,129.18,129.15,0.34]
[1719185370817,7.7417,129.17,129.15,0.17]
[1719185371339,7.7427,129.16,129.12,200.0]
[1719185371635,7.7427,129.16,129.14,100.0]
[1719185371808,23.29605246,129.23,129.14,100.0]
[1719185372005,7.7426,129.16,129.13,0.34]
[1719185373651,7.742,129.17,129.13,0.34]
[1719185373947,7.7424,129.16,129.13,0.34]
[1719185375632,7.7423,129.16,129.13,0.34]
[1719185376855,7.7429,129.15,129.12,100.0]
[1719185378634,7.7429,129.15,129.11,8.0853]
[1719185378957,7.7437,129.14,129.11,0.34]
[1719185384150,7.7437,129.14,129.12,0.17]
[1719185384326,7.7437,129.14,129.12,0.34]
[1719185384526,7.7437,129.14,129.1,100.0]
[1719185384757,7.7437,129.14,129.11,0.17]
[1719185384931,7.7437,129.14,129.11,0.34]
[1719185386959,7.7442,129.13,129.11,0.34]
[1719185387543,7.7436,129.14,129.11,0.34]
[1719185387860,7.7436,129.14,129.12,100.0]
[1719185388370,7.7441,129.13,129.12,100.0]
[1719185388547,7.7441,129.13,129.12,100.17]
[1719185389777,30.94888713,129.19,129.12,100.34]
[1719185389778,7.7437,129.14,129.12,100.34]
[1719185390060,7.7431,129.15,129.13,0.34]
[1719185391366,7.7431,129.15,129.14,100.0]
[1719185391538,7.7431,129.15,129.14,100.34]
[1719185394053,22.9466,129.19,129.12,100.0]
[1719185394265,7.7435,129.14,129.13,0.34]
[1719185394978,7.7451,129.12,129.1,100.0]
[1719185395275,7.7449,129.12,129.1,100.0]
[1719185395649,22.9466,129.19,129.14,100.0]
[1719185395963,7.7425,129.16,129.13,100.0]
[1719185396153,7.7431,129.15,129.14,0.17]
[1719185396564,7.7435,129.14,129.13,100.0]
[1719185396753,7.7435,129.14,129.13,100.34]
[1719185396972,7.2435,129.14,129.13,100.34]
[1719185397258,7.2435,129.14,129.13,0.34]
[1719185398172,7.2435,129.14,129.12,100.0]
[1719185398379,7.7441,129.13,129.12,100.0]
[1719185398674,7.7441,129.13,129.12,100.17]
[1719185398882,7.7441,129.13,129.12,0.17]
[1719185399085,7.7437,129.14,129.12,0.17]
[1719185399375,7.7437,129.14,129.11,0.34]
[1719185400382,7.7442,129.13,129.1,100.0]
[1719185401182,1.06925246,129.18,129.1,100.0]
[1719185401183,7.7437,129.14,129.1,100.0]
[1719185401665,7.7437,129.14,129.11,0.17]
[1719185402261,7.7441,129.13,129.1,100.0]
[1719185402453,1.06925246,129.18,129.09,0.17]
[1719185402781,1.06925246,129.18,129.1,0.17]
[1719185402991,1.06925246,129.18,129.1,0.34]
[1719185403360,1.06925246,129.18,129.1,0.17]
[1719185403591,7.7451,129.12,129.09,0.17]
[1719185403762,7.7447,129.12,129.09,0.17]
[1719185404772,1.06925246,129.18,129.11,100.0]
[1719185404976,30.95081533,129.19,129.11,100.0]
[1719185404977,7.7438,129.14,129.11,100.0]
[1719185405770,7.7426,129.16,129.12,0.34]
[1719185405976,32.02006779,129.19,129.13,207.7438]
[1719185405977,7.7415,129.18,129.13,207.7438]
[1719185406180,7.7415,129.18,129.14,0.34]
[1719185406361,7.7415,129.18,129.14,1.88522363]
[1719185406692,7.7415,129.18,129.14,0.34]
[1719185407021,7.7418,129.17,129.14,0.34]
[1719185408260,7.7402,129.2,129.17,100.0]
[1719185408690,7.7402,129.2,129.18,0.17]
[1719185408862,7.7402,129.2,129.18,0.34]
[1719185411187,23.96365246,129.23,129.15,146.54]
[1719185411399,22.8944,129.23,129.18,100.0]
[1719185411762,7.74,129.2,129.18,100.0]
[1719185412184,7.7396,129.21,129.18,100.0]
[1719185412362,7.7388,129.22,129.18,100.0]
[1719185412691,7.7388,129.22,129.19,0.34]
[1719185414396,7.7394,129.21,129.19,0.34]
[1719185415198,7.7399,129.2,129.19,0.34]
[1719185415695,7.2399,129.2,129.19,0.34]
[1719185415856,7.7396,129.21,129.19,0.34]
[1719185416055,7.74,129.2,129.18,100.0]
[1719185416772,15.9871,129.23,129.14,106.3044]
[1719185416976,1.06925246,129.22,129.15,0.17]
[1719185417186,7.7405,129.19,129.15,0.17]
[1719185417782,7.7411,129.18,129.15,0.17]
[1719185418096,7.7411,129.18,129.15,0.34]
[1719185420393,7.16955246,129.22,129.14,100.0]
[1719185420569,7.16955246,129.22,129.12,100.0]
[1719185420570,7.7427,129.16,129.12,100.0]
[1719185421170,7.7427,129.16,129.12,107.7446]
[1719185421388,7.7418,129.17,129.12,107.7446]
[1719185421791,7.7414,129.18,129.13,7.7439]
[1719185422095,8.09195045,129.21,129.14,207.9131]
[1719185422271,7.7407,129.19,129.16,100.0]
[1719185424378,7.7411,129.18,129.15,0.17]
[1719185424700,7.7411,129.18,129.16,0.17]
[1719185424903,7.7407,129.19,129.16,100.17]
[1719185425268,7.7408,129.19,129.16,100.17]
[1719185425471,7.7408,129.19,129.17,0.17]
[1719185430109,17.05635246,129.23,129.18,100.0]
[1719185430110,7.7402,129.2,129.18,100.0]
[1719185433022,7.7393,129.21,129.2,100.0]
[1719185433189,7.739,129.22,129.2,100.17]
[1719185433389,7.7393,129.21,129.2,100.17]
[1719185433713,7.7393,129.21,129.2,100.34]
[1719185434082,7.7393,129.21,129.2,0.34]
[1719185434515,16.98255246,129.26,129.18,100.0]
[1719185434699,7.7399,129.2,129.19,0.34]
[1719185435103,7.7399,129.2,129.19,100.34]
[1719185435410,7.7395,129.21,129.19,100.34]
[1719185435610,7.739,129.22,129.19,100.34]
[1719185436412,7.7394,129.21,129.19,100.34]
[1719185436790,7.7389,129.22,129.19,100.34]
[1719185437187,15.9133,129.26,129.21,100.0]
[1719185437188,7.7383,129.23,129.21,100.0]
[1719185438106,7.7378,129.24,129.21,100.0]
[1719185438411,7.7378,129.24,129.22,0.34]
[1719185438791,7.7372,129.25,129.22,0.34]
[1719185438988,7.7372,129.25,129.23,100.0]
[1719185439302,7.7372,129.25,129.24,0.17]
[1719185439493,7.7367,129.26,129.24,100.17]
[1719185439691,7.7358,129.27,129.26,100.0]
[1719185439894,7.7358,129.27,129.26,100.34]
[1719185442723,7.10686341,129.32,129.23,100.0]
[1719185442924,7.7369,129.25,129.24,0.34]
[1719185443088,7.7369,129.25,129.24,0.17]
[1719185443289,7.7384,129.23,129.21,100.0]
[1719185444214,15.7904,129.28,129.23,100.0]
[1719185444422,7.737,129.25,129.23,100.0]
[1719185444893,7.737,129.25,129.24,0.17]
[1719185447321,7.7366,129.26,129.24,0.34]
[1719185448601,7.7358,129.27,129.25,100.0]
[1719185449294,7.7353,129.28,129.26,0.34]
[1719185449801,7.7357,129.27,129.26,0.34]
[1719185450600,7.7365,129.26,129.23,100.0]
[1719185450805,7.7359,129.27,129.24,0.34]
[1719185451532,17.51745246,129.31,129.24,0.17]
[1719185451533,7.7364,129.26,129.24,0.17]
[1719185452710,7.7369,129.25,129.24,0.17]
[1719185453304,7.7366,129.26,129.24,0.17]
[1719185453501,7.7366,129.26,129.21,7.739]
[1719185453502,25.59801767,129.31,129.2,116.378]
[1719185453828,25.59801767,129.31,129.22,100.0]
[1719185454196,25.59801767,129.31,129.2,116.378]
[1719185454501,7.7357,129.27,129.23,100.0]
[1719185454697,7.7364,129.26,129.23,100.0]
[1719185455127,25.59801767,129.31,129.23,100.0]
[1719185455128,7.7359,129.27,129.23,100.0]
[1719185455435,24.52876521,129.31,129.25,100.0]
[1719185455736,7.7341,129.3,129.26,0.34]
[1719185455907,16.4482,129.31,129.26,0.34]
[1719185455908,7.7346,129.29,129.26,0.34]
[1719185456935,7.7331,129.32,129.27,100.0]
[1719185457105,7.7331,129.32,129.28,0.34]
[1719185457932,7.7333,129.31,129.28,0.34]
[1719185458635,14.3663388,129.36,129.3,100.0]
[1719185458934,9.15219126,129.36,129.3,100.0]
[1719185459251,8.0829388,129.36,129.3,100.0]
[1719185460016,8.0829388,129.36,129.31,0.34]
[1719185460923,9.15219126,129.36,129.28,100.0]
[1719185461122,1.06925246,129.35,129.29,0.17]
[1719185461740,1.06925246,129.35,129.29,0.67422067]
[1719185462412,8.0829388,129.36,129.3,100.0]
[1719185462730,8.0829388,129.36,129.33,100.0]
[1719185462916,1.06925246,129.4,129.34,0.34]
[1719185463115,8.07978761,129.4,129.34,0.34]
[1719185463526,8.07978761,129.4,129.33,100.0]
[1719185463824,7.7321,129.33,129.32,0.34]
[1719185465709,1.06925246,129.39,129.32,0.34]
[1719185465918,7.7305,129.36,129.34,100.0]
[1719185466228,7.7295,129.38,129.36,100.0]
[1719185466621,7.7295,129.38,129.37,0.17]
[1719185467251,15.5412128,129.43,129.33,107.7318]
[1719185467252,7.7304,129.36,129.33,100.0]
[1719185467423,1.06925246,129.42,129.34,0.34]
[1719185467621,7.7298,129.37,129.35,100.0]
[1719185469847,7.7303,129.36,129.35,100.0]
[1719185471252,7.7303,129.36,129.34,0.34]
[1719185471953,7.7309,129.35,129.33,100.0]
[1719185472158,1.06925246,129.42,129.33,100.0]
[1719185472449,7.7315,129.34,129.33,100.0]
[1719185472827,16.2833,129.38,129.33,100.0]
[1719185473014,7.7314,129.35,129.33,100.0]
[1719185473214,7.7306,129.36,129.33,100.0]
[1719185473418,7.7298,129.37,129.33,100.0]
[1719185473615,7.7298,129.37,129.34,0.17]
[1719185473831,7.7298,129.37,129.34,0.34]
[1719185474249,7.7304,129.36,129.34,0.34]
[1719185474743,15.2032,129.41,129.36,100.0]
[1719185474923,7.7297,129.37,129.36,100.0]
[1719185475125,7.7297,129.37,129.36,100.17]
[1719185475664,7.7293,129.38,129.36,100.17]
[1719185476664,7.7293,129.38,129.37,0.17]
[1719185476822,7.7287,129.39,129.37,0.73048182]
[1719185477629,7.7287,129.39,129.37,0.17]
[1719185477932,7.7291,129.38,129.37,0.34]
[1719185478946,7.7291,129.38,129.37,0.17]
[1719185479134,7.7294,129.38,129.37,0.17]
[1719185479339,9.13916064,129.44,129.37,0.17]
[1719185479340,7.7287,129.39,129.37,0.34]
[1719185483154,7.7291,129.38,129.37,0.34]
[1719185483332,7.7297,129.37,129.36,100.0]
[1719185483533,7.7297,129.37,129.36,100.34]
[1719185485653,7.7293,129.38,129.36,100.34]
[1719185491965,9.13916064,129.44,129.36,0.17]
[1719185492328,7.7292,129.38,129.36,0.17]
[1719185492547,7.7292,129.38,129.35,0.34]
[1719185492940,7.7292,129.38,129.36,100.0]
[1719185496268,9.13916064,129.44,129.36,100.0]
[1719185496563,9.13916064,129.44,129.37,0.34]
[1719185497247,7.7284,129.4,129.37,0.34]
[1719185497457,7.7285,129.39,129.37,0.34]
[1719185497667,7.728,129.4,129.38,100.0]
[1719185497838,8.06990818,129.44,129.39,0.17]
[1719185498168,7.7276,129.41,129.39,0.34]
[1719185498738,7.7279,129.4,129.39,0.34]
[1719185500162,7.7283,129.4,129.39,0.17]
[1719185500466,7.7283,129.4,129.39,0.34]
[1719185501056,7.7276,129.41,129.39,0.34]
[1719185502260,7.7279,129.4,129.39,0.34]
[1719185506164,16.91065246,129.45,129.39,0.34]
[1719185506365,7.7279,129.4,129.39,0.34]
[1719185506567,7.7278,129.41,129.39,0.34]
[1719185506959,7.7295,129.38,129.36,100.0]
[1719185507163,7.7293,129.38,129.34,216.1656]
[1719185507857,7.7293,129.38,129.34,116.1656]
[1719185508377,7.7293,129.38,129.35,0.17]
[1719185508575,7.7293,129.38,129.35,0.34]
[1719185510070,7.7299,129.37,129.35,0.34]
[1719185510607,7.7295,129.38,129.35,0.34]
[1719185510964,7.73,129.37,129.35,0.17]
[1719185511158,7.7297,129.38,129.35,0.34]
[1719185511490,8.07457016,129.42,129.35,0.34]
[1719185512389,7.7294,129.38,129.35,0.34]
[1719185517690,7.7298,129.37,129.35,0.34]
[1719185519508,7.7296,129.38,129.35,0.34]
[1719185519792,7.7297,129.37,129.35,0.34]
[1719185521602,15.4655,129.4,129.32,100.0]
[1719185521768,7.7321,129.33,129.32,100.0]
[1719185521971,7.7318,129.34,129.32,100.0]
[1719185522277,7.7329,129.32,129.3,100.0]
[1719185523191,7.7317,129.34,129.32,100.0]
[1719185524584,7.7321,129.33,129.32,100.0]
[1719185524898,7.7318,129.34,129.32,100.34]
[1719185525188,7.7321,129.33,129.32,100.34]
[1719185526001,7.7321,129.33,129.32,0.17]
[1719185526296,7.7333,129.31,129.3,100.0]
[1719185526508,7.7333,129.31,129.3,0.17]
[1719185527303,7.7333,129.31,129.29,0.17]
[1719185527888,7.7329,129.32,129.3,100.0]
[1719185528096,7.7324,129.33,129.31,0.17]
[1719185528906,7.7327,129.32,129.31,0.17]
[1719185529203,21.7439,129.38,129.28,100.0]
[1719185529372,1.06925246,129.37,129.28,100.0]
[1719185529772,7.7339,129.3,129.29,1.54399599]
[1719185530003,7.7339,129.3,129.28,100.0]
[1719185531097,1.06925246,129.37,129.28,100.0]
[1719185531320,7.7345,129.29,129.28,100.0]
[1719185531600,7.7345,129.29,129.28,100.17]
[1719185533008,7.7345,129.29,129.28,100.34]
[1719185533699,1.06925246,129.34,129.28,100.34]
[1719185533874,7.7335,129.31,129.29,0.17]
[1719185534073,8.0470359,129.35,129.29,0.17]
[1719185534074,7.7329,129.32,129.31,100.0]
[1719185534291,8.0470359,129.35,129.34,100.0]
[1719185534636,7.7307,129.36,129.34,100.34]
[1719185534976,7.7307,129.36,129.35,0.17]
[1719185535710,7.7309,129.35,129.34,0.17]
[1719185536215,7.7309,129.35,129.34,100.17]
[1719185536803,7.7309,129.35,129.34,0.17]
[1719185537008,7.7321,129.33,129.32,100.0]
[1719185537177,7.7321,129.33,129.32,100.17]
[1719185537516,7.7307,129.36,129.34,100.0]
[1719185539833,15.348,129.41,129.36,100.0]
[1719185539998,8.04499592,129.42,129.37,0.34]
[1719185540318,7.7288,129.39,129.37,0.34]
[1719185541107,7.7291,129.38,129.37,0.34]
[1719185541920,7.7309,129.35,129.32,122.3583]
[1719185542920,16.90795246,129.44,129.34,100.0]
[1719185542921,7.7305,129.36,129.34,100.0]
[1719185543129,16.90795246,129.44,129.37,100.0]
[1719185543596,7.7285,129.39,129.37,100.0]
[1719185544798,16.90795246,129.44,129.35,100.17]
[1719185545000,7.73,129.37,129.35,100.17]
[1719185545529,7.7293,129.38,129.35,100.17]
[1719185545727,7.7293,129.38,129.36,0.17]
[1719185546031,7.7296,129.38,129.36,0.17]
[1719185546425,7.7297,129.37,129.36,0.17]
[1719185546812,16.1545,129.39,129.33,100.0]
[1719185547013,7.7311,129.35,129.33,100.0]
[1719185547409,16.1545,129.39,129.33,100.0]
[1719185547619,7.7329,129.32,129.29,122.7023]
[1719185547811,7.7329,129.32,129.27,100.0]
[1719185547812,1.06925246,129.38,129.27,100.0]
[1719185548019,7.7342,129.3,129.27,100.0]
[1719185548419,7.7335,129.31,129.29,100.0]
[1719185548745,1.06925246,129.38,129.29,100.0]
[1719185548910,1.06925246,129.38,129.29,200.0]
[1719185549102,7.7322,129.33,129.29,200.0]
[1719185549719,7.7327,129.32,129.29,100.0]
[1719185550132,7.7327,129.32,129.3,0.34]
[1719185551132,7.7323,129.33,129.3,0.34]
[1719185552030,8.05828462,129.37,129.31,100.0]
[1719185552236,17.22375246,129.39,129.32,0.34]
[1719185552237,7.7311,129.35,129.32,0.34]
[1719185553729,25.28068538,129.39,129.32,0.34]
[1719185554201,7.7305,129.36,129.34,100.0]
[1719185555440,7.73,129.37,129.34,100.0]
[1719185555637,7.73,129.37,129.35,0.34]
[1719185556143,7.7303,129.36,129.35,0.34]
[1719185557032,9.12522036,129.41,129.34,100.0]
[1719185557213,7.7306,129.36,129.34,100.0]
[1719185557933,7.7309,129.35,129.34,100.0]
[1719185558638,15.6055,129.35,129.28,100.0]
[1719185558815,7.7334,129.31,129.3,100.0]
[1719185559017,1.06925246,129.34,129.26,100.0]
[1719185559227,15.6055,129.35,129.24,106.2377]
[1719185559228,15.6055,129.35,129.28,100.0]
[1719185559542,7.7337,129.31,129.28,100.0]
[1719185559722,16.67475246,129.35,129.26,146.49]
[1719185559923,7.7342,129.3,129.26,146.49]
[1719185560114,16.67475246,129.35,129.23,100.0]
[1719185560439,7.7369,129.25,129.23,100.0]
[1719185560619,7.7375,129.24,129.23,100.0]
[1719185560807,7.7371,129.25,129.23,100.0]
[1719185561211,15.6055,129.27,129.19,100.0]
[1719185561519,15.6055,129.27,129.16,100.0]
[1719185561719,1.06925246,129.26,129.16,146.49]
[1719185561923,7.74,129.2,129.19,100.0]
[1719185562127,7.7399,129.2,129.19,100.0]
[1719185562625,7.7395,129.21,129.19,100.0]
[1719185567449,15.80237667,129.25,129.2,7.7399]
[1719185567750,7.7384,129.23,129.21,100.34]
[1719185568046,7.7387,129.22,129.21,0.17]
[1719185568227,7.7387,129.22,129.2,0.34]
[1719185568630,7.7393,129.21,129.2,0.17]
[1719185568826,1.06925246,129.26,129.14,46.49]
[1719185569139,7.742,129.17,129.13,100.0]
[1719185569319,21.8905,129.19,129.13,100.0]
[1719185569521,7.7435,129.14,129.11,100.0]
[1719185569942,1.06925246,129.18,129.09,100.0]
[1719185570117,21.8905,129.19,129.1,46.49]
[1719185570318,1.06925246,129.18,129.09,100.0]
[1719185570934,7.7456,129.11,129.09,100.0]
[1719185571252,7.7459,129.1,129.09,100.0]
[1719185571420,1.06925246,129.18,129.09,100.0]
[1719185571755,7.7454,129.11,129.09,100.0]
[1719185571928,7.7454,129.11,129.03,106.0664]
[1719185571929,1.06925246,129.18,129.07,100.0]
[1719185572248,7.7461,129.1,129.07,100.0]
[1719185572944,1.06925246,129.17,129.09,100.0]
[1719185573332,1.06925246,129.18,129.09,100.0]
[1719185573647,7.7454,129.11,129.09,100.0]
[1719185574151,7.7448,129.12,129.09,100.0]
[1719185574655,1.06925246,129.18,129.08,0.17]
[1719185574864,7.7455,129.11,129.08,0.17]
[1719185575023,7.7455,129.11,129.09,100.0]
[1719185575727,1.06925246,129.18,129.07,100.0]
[1719185576143,7.7465,129.09,129.07,100.0]
[1719185576355,7.7461,129.1,129.07,100.0]
[1719185578660,16.2298,129.11,129.05,100.0]
[1719185578864,7.7463,129.1,129.07,100.0]
[1719185579070,6.4008,129.12,129.07,100.0]
[1719185579368,7.7465,129.09,129.07,100.0]
[1719185579690,17.29905246,129.14,129.07,100.0]
[1719185579848,7.7459,129.1,129.07,100.0]
[1719185580057,7.7459,129.1,129.08,0.34]
[1719185580670,17.29905246,129.14,129.05,100.0]
[1719185580873,7.7474,129.08,129.06,0.34]
[1719185581049,7.7467,129.09,129.06,0.17]
[1719185582052,17.29905246,129.14,129.06,0.17]
[1719185582256,7.7477,129.07,129.06,0.17]
[1719185582455,7.7473,129.08,129.06,0.17]
[1719185582745,7.7466,129.09,129.06,0.17]
[1719185583142,7.749,129.05,129.03,100.0]
[1719185583550,7.7484,129.06,129.03,100.0]
[1719185583764,7.7479,129.07,129.03,100.0]
[1719185584650,22.1421,129.08,129.02,0.8336853]
[1719185584851,6.0493,129.12,129.04,100.0]
[1719185585163,7.7476,129.08,129.04,100.0]
[1719185585364,7.11855246,129.12,129.04,100.0]
[1719185585548,7.7489,129.05,129.04,100.0]
[1719185586248,7.7489,129.05,129.04,100.34]
[1719185586460,7.7501,129.03,129.02,0.8336853]
[1719185588054,7.7501,129.03,129.0,7247.1153768]
[1719185588055,7.7513,129.01,129.0,7247.1153768]
[1719185590070,8.0649378,129.05,129.0,7247.1153768]
[1719185590271,6.2187,129.06,129.0,7247.1153768]
[1719185590272,7.7509,129.02,129.0,7247.1153768]
[1719185590874,7.7513,129.01,129.0,7247.1153768]
[1719185595377,7.7502,129.03,129.0,7247.1153768]
[1719185595565,23.36448119,129.07,129.0,7247.1153768]
[1719185595566,23.36448119,129.07,129.0,7347.1153768]
[1719185595766,7.7504,129.03,129.01,0.34]
[1719185596795,7.7497,129.04,129.01,0.34]
[1719185597383,7.7496,129.04,129.01,0.34]
[1719185599573,7.7496,129.04,129.02,100.0]
[1719185599885,7.7492,129.05,129.03,0.17]
[1719185600388,7.7495,129.04,129.03,0.17]
[1719185601463,8.06353004,129.08,129.03,0.17]
[1719185601773,7.7492,129.05,129.03,0.34]
[1719185602475,7.7486,129.06,129.03,0.34]
[1719185602678,7.7489,129.05,129.03,0.34]
[1719185604184,7.7484,129.06,129.04,100.0]
[1719185604388,7.7478,129.07,129.05,0.17]
[1719185604612,8.06353004,129.08,129.06,100.0]
[1719185604767,7.7471,129.08,129.07,0.34]
[1719185605698,7.7467,129.09,129.07,0.34]
[1719185607480,7.7461,129.1,129.07,0.34]
[1719185608495,8.05936098,129.14,129.09,100.0]
[1719185608789,7.745,129.12,129.09,100.0]
[1719185608978,7.7455,129.11,129.07,200.34]
[1719185609178,1.06925246,129.14,129.07,0.34]
[1719185609479,7.7462,129.1,129.08,0.17]
[1719185609715,8.0568611,129.16,129.08,100.0]
[1719185609865,7.7442,129.13,129.09,0.34]
[1719185611470,7.7437,129.14,129.1,100.0]
[1719185611671,7.7437,129.14,129.11,0.34]
[1719185611904,8.0568611,129.16,129.13,7.7439]
[1719185612073,7.7418,129.17,129.14,0.34]
[1719185612595,7.7438,129.14,129.1,100.0]
[1719185612771,7.7441,129.13,129.12,100.0]
[1719185612973,7.7438,129.14,129.12,100.34]
[1719185613276,7.7438,129.14,129.12,100.0]
[1719185614478,7.7432,129.15,129.12,100.0]
[1719185615998,7.7455,129.11,129.09,106.1333]
[1719185616201,7.7449,129.12,129.09,106.1333]
[1719185617280,7.7443,129.13,129.09,106.1333]
[1719185617479,7.7438,129.14,129.09,113.8796]
[1719185617677,7.7443,129.13,129.09,106.1333]
[1719185617989,7.7443,129.13,129.1,0.17]
[1719185618300,7.7436,129.14,129.1,0.34]
[1719185619276,7.7436,129.14,129.01,100.0]
[1719185619277,7.34315246,129.13,129.01,100.0]
[1719185619482,7.7491,129.05,129.01,100.0]
[1719185619709,7.7496,129.04,129.01,100.0]
[1719185620081,7.749,129.05,129.01,100.0]
[1719185620916,7.7483,129.06,129.03,100.0]
[1719185621074,1.06925246,129.11,129.01,100.0]
[1719185621075,7.7494,129.05,129.01,100.0]
[1719185621708,7.7494,129.05,129.02,0.17]
[1719185622511,1.06925246,129.12,129.02,0.17]
[1719185622686,8.0659872,129.06,129.02,0.17]
[1719185623014,7.7501,129.03,129.02,0.17]
[1719185623223,7.7496,129.04,129.02,0.17]
[1719185623903,7.7496,129.04,129.02,0.34]
[1719185626913,7.7491,129.05,129.02,0.34]
[1719185627410,0.34,129.11,129.02,0.34]
[1719185627586,7.7496,129.04,129.02,0.34]
[1719185628003,7.7491,129.05,129.02,0.34]
[1719185628595,7.7496,129.04,129.02,0.34]
[1719185628791,7.7493,129.05,129.02,0.34]
[1719185628984,1.06925246,129.12,129.03,100.0]
[1719185629192,7.7475,129.08,129.04,0.34]
[1719185629394,7.7477,129.07,129.04,0.34]
[1719185631711,7.7491,129.05,129.03,100.0]
[1719185633012,7.7495,129.04,129.03,100.0]
[1719185633527,7.7481,129.07,129.03,100.34]
[1719185633701,7.7481,129.07,129.04,0.34]
[1719185633899,7.7483,129.06,129.04,0.34]
[1719185634111,7.7489,129.05,129.03,100.0]
[1719185634311,7.7485,129.06,129.03,100.0]
[1719185634689,7.7479,129.07,129.03,100.0]
[1719185634890,7.7487,129.06,129.04,0.34]